fUST/lending_fUST_20240707
["ID","MTS","AMOUNT","RATE_DAILY","PERIOD"]
[331383111,1720309968462,309.42733866,0.00014999,2]
[331383112,1720309968797,229.51790849,0.00014999,2]
[331383113,1720309974072,212.16043531,0.00014999,2]
[331383114,1720309974622,208.65035491,0.00014999,2]
[331383115,1720309991087,403.37885226,0.00014999,2]
[331383116,1720310002184,212.98780093,0.00014999,2]
[331383117,1720310002742,1107.40449304,0.00015,2]
[331383118,1720310014190,937.05831925,0.00014999,2]
[331383119,1720310022619,158.97374278,0.00014999,2]
[331383120,1720310023261,902.63310255,0.00014999,2]
[331383121,1720310024954,2227.63025687,0.00014999,2]
[331383122,1720310038074,239.99334204,0.00014999,2]
[331383123,1720310047096,401.78930173,0.00014999,2]
[331383124,1720310057568,550.42390316,0.00014999,2]
[331383125,1720310076541,2371.5111559,0.0001499,2]
[331383126,1720310091517,3138.20168904,0.00014999,2]
[331383127,1720310092466,19378.48287081,0.00014999,2]
[331383128,1720310095917,2118.88107789,0.00014999,2]
[331383129,1720310155470,251.32501429,0.00014999,2]
[331383130,1720310157742,176.30685021,0.00014999,2]
[331383131,1720310162523,934.55932162,0.00014999,2]
[331383132,1720310168497,286.83357324,0.00014999,2]
[331383133,1720310184891,172.42488097,0.00014999,2]
[331383134,1720310300189,199.9578956,0.00014965,2]
[331383135,1720310335505,300.2957453,0.00014999,2]
[331383136,1720310394382,286.83357324,0.00014999,2]
[331383137,1720310419839,1039.06688618,0.00015,2]
[331383138,1720310455683,294.67476711,0.00014999,2]
[331383139,1720310505797,523.68456754,0.00014999,2]
[331383140,1720310514222,2056.689147,0.00014965,2]
[331383141,1720310552007,14766.0061659,0.00014963,2]
[331383142,1720310604188,511.39547482,0.00014999,2]
[331383143,1720310610240,154.77557542,0.00014999,2]
[331383144,1720310621023,529.80393287,0.00014999,2]
[331383148,1720310662221,305.48467178,0.00014999,2]
[331383149,1720310677731,523.68456754,0.00014999,2]
[331383150,1720310695951,305.48467178,0.00014999,2]
[331383151,1720310777024,414.91863712,0.00014999,2]
[331383152,1720310860563,344.54244035,0.00014999,2]
[331383153,1720310938824,-300.0,0.00015052,2]
[331383154,1720310938858,-300.0,0.00015052,2]
[331383155,1720310938892,-250.0,0.00015053,2]
[331383156,1720310938929,-88.46102929,0.00015053,2]
[331383157,1720310938971,-938.46102929,0.00015053,2]
[331383158,1720310939023,-269.88939728,0.00015053,2]
[331383159,1720310949201,-300.0,0.00015052,2]
[331383160,1720310949224,-300.0,0.00015052,2]
[331383161,1720310949248,-8509.04179452,0.00015053,2]
[331383162,1720310964097,-981.3972584,0.00015053,2]
[331383163,1720310964310,-981.3972584,0.00015053,2]
[331383164,1720310964353,-554.40268443,0.00015053,2]
[331383165,1720310979430,901.10262593,0.00014953,2]
[331383167,1720310988696,-1031.74120243,0.00015053,2]
[331383168,1720310988752,-1031.74120243,0.00015053,2]
[331383169,1720310988807,-580.57354243,0.00015053,2]
[331383170,1720311028986,274.20255196,0.00014999,2]
[331383171,1720311032086,-300.0,0.00015052,2]
[331383174,1720311032096,-299.78188424,0.00015052,2]
[331383267,1720311032898,-0.21811576,0.00015052,2]
[331383268,1720311032909,-9932.8936011,0.00015053,2]
[331383269,1720311032919,-455.5898504,0.00015139,2]
[331383270,1720311032929,-866.938852,0.00015252,2]
[331383271,1720311032938,-1001.16701425,0.00016145,2]
[331383272,1720311032947,-1001.16701425,0.00016147,2]
[331383273,1720311032957,-1001.16701425,0.0001615,2]
[331383274,1720311032967,-1001.16701425,0.00016152,2]
[331383275,1720311032979,-1001.16701425,0.00016154,2]
[331383276,1720311032990,-226.75717181,0.00016233,2]
[331383277,1720311033000,-4248.60580636,0.00016233,2]
[331383278,1720311033010,-269.54590627,0.00016243,2]
[331383279,1720311033020,-500.0,0.00016243,2]
[331383280,1720311033030,-500.0,0.00016243,2]
[331383281,1720311033039,-500.0,0.00016243,2]
[331383282,1720311033049,-500.0,0.00016243,2]
[331383283,1720311033059,-500.0,0.00016243,2]
[331383284,1720311033068,-500.0,0.00016243,2]
[331383285,1720311033078,-500.0,0.00016243,2]
[331383286,1720311033088,-320.85841929,0.00016243,2]
[331383287,1720311033097,-500.0,0.00016243,2]
[331383288,1720311033109,-500.0,0.00016243,2]
[331383289,1720311033118,-194.82189296,0.00016243,2]
[331383290,1720311033128,-500.0,0.00016243,2]
[331383291,1720311033138,-500.0,0.00016243,2]
[331383292,1720311033147,-500.0,0.00016243,2]
[331383293,1720311033156,-378.54966138,0.00016243,2]
[331383294,1720311033166,-500.0,0.00016243,2]
[331383295,1720311033175,-500.0,0.00016243,2]
[331383296,1720311033184,-500.0,0.00016243,2]
[331383297,1720311033197,-274.76485074,0.00016243,2]
[331383298,1720311033208,-13.17885392,0.00016243,2]
[331383299,1720311039072,-486.82114608,0.00016243,2]
[331383302,1720311039083,-500.0,0.00016243,2]
[331383304,1720311039093,-500.0,0.00016243,2]
[331383306,1720311039104,-500.0,0.00016243,2]
[331383308,1720311039115,-500.0,0.00016243,2]
[331383311,1720311039124,-500.0,0.00016243,2]
[331383313,1720311039135,-500.0,0.00016243,2]
[331383316,1720311039144,-500.0,0.00016243,2]
[331383318,1720311039154,-250.60463853,0.00016243,2]
[331383321,1720311039164,-500.0,0.00016243,2]
[331383324,1720311039175,-252.35104302,0.00016243,2]
[331383326,1720311039185,-500.0,0.00016243,2]
[331383328,1720311039195,-500.0,0.00016243,2]
[331383331,1720311039206,-500.0,0.00016243,2]
[331383333,1720311039216,-500.0,0.00016243,2]
[331383334,1720311039226,-500.0,0.00016243,2]
[331383336,1720311039236,-500.0,0.00016243,2]
[331383338,1720311039247,-288.77549235,0.00016243,2]
[331383339,1720311039258,-4181.11479265,0.00016244,2]
[331383340,1720311039270,-640.0,0.00016244,2]
[331383341,1720311039283,-359193.62276735,0.00016244,2]
[331383342,1720311039293,-121338.245853,0.00016245,2]
[331383343,1720311039303,-57222.12785795,0.00016254,2]
[331383344,1720311039313,-100000.0,0.00016254,2]
[331383345,1720311039323,-42231.73992324,0.00016255,2]
[331383346,1720311039334,-154.77557542,0.00016255,2]
[331383347,1720311039344,-17250.52577349,0.00016255,2]
[331383348,1720311039354,-166.666666,0.00016438,2]
[331383349,1720311039364,-420.0,0.00016473,2]
[331383350,1720311039375,-420.0,0.00016557,2]
[331383351,1720311039384,-276.46537961,0.0001681,2]
[331383352,1720311039395,-166.666666,0.00016823,2]
[331383353,1720311039405,-166.666666,0.00017208,2]
[331383354,1720311039415,-166.666666,0.00017592,2]
[331383355,1720311039426,-166.666666,0.00017977,2]
[331383356,1720311039436,-587.0,0.00018027,2]
[331383357,1720311039446,-2117.84258891,0.0001818,2]
[331383358,1720311039456,-587.0,0.00018213,2]
[331383359,1720311039466,-166.666666,0.00018362,2]
[331383360,1720311039476,-30917.44411425,0.0001879,2]
[331383361,1720311039485,-15389.53859157,0.000189,2]
[331383362,1720311039495,-197.16559461,0.00019,2]
[331383363,1720311039504,-812.51622582,0.00019,3]
[331383364,1720311039514,-250.0,0.00019041,2]
[331383365,1720311039523,-193.803263,0.00019178,2]
[331383366,1720311039534,-823.0,0.00019729,2]
[331383367,1720311039543,-150.0,0.00019824,2]
[331383368,1720311039716,-150.25347751,0.00019879,2]
[331383369,1720311039726,-42291.7981438,0.00019988,2]
[331383370,1720311039736,-151.0,0.00019988,2]
[331383371,1720311039747,-151.0,0.00019988,2]
[331383372,1720311039757,-256.613759,0.00019988,2]
[331383373,1720311039768,-151.0,0.00019988,2]
[331383374,1720311039778,-151.0,0.00019988,2]
[331383375,1720311039790,-151.0,0.00019988,2]
[331383376,1720311039800,-151.0,0.00019988,2]
[331383377,1720311039810,-151.0,0.00019988,2]
[331383378,1720311039820,-349.445685,0.00019988,2]
[331383379,1720311039830,-151.0,0.00019988,2]
[331383380,1720311039840,-349.445685,0.00019988,2]
[331383381,1720311039850,-450.650008,0.00019988,2]
[331383382,1720311039860,-450.650008,0.00019988,2]
[331383383,1720311039871,-151.0,0.00019988,2]
[331383384,1720311039882,-165.577565,0.00019988,2]
[331383385,1720311039892,-408.482586,0.00019988,2]
[331383386,1720311039901,-151.0,0.00019988,2]
[331383387,1720311039912,-408.482586,0.00019988,2]
[331383388,1720311039921,-151.0,0.00019988,2]
[331383389,1720311039931,-151.0,0.00019988,2]
[331383390,1720311039942,-151.0,0.00019988,2]
[331383391,1720311039952,-218.510069,0.00019988,2]
[331383392,1720311039962,-218.510069,0.00019988,2]
[331383393,1720311039971,-151.0,0.0001999,2]
[331383394,1720311039982,-151.0,0.0001999,2]
[331383395,1720311039992,-151.0,0.0001999,2]
[331383396,1720311040002,-215.242558,0.0001999,2]
[331383397,1720311040011,-215.242558,0.0001999,2]
[331383398,1720311040020,-151.0,0.0001999,2]
[331383399,1720311040030,-151.0,0.0001999,2]
[331383400,1720311040042,-182.41181182,0.00019996,2]
[331383401,1720311040052,-293.21931504,0.0002,2]
[331383402,1720311040062,-625.14049382,0.0002,2]
[331383403,1720311040072,-3969.2639633,0.0002,2]
[331383404,1720311040082,-135347.19683978,0.0002,2]
[331383405,1720311040091,-151.0,0.0002,2]
[331383406,1720311040102,-435.0,0.0002,2]
[331383407,1720311040116,-151.41147,0.0002,2]
[331383408,1720311040125,-154.77557542,0.0002,2]
[331383409,1720311040135,-359.196396,0.0002,2]
[331383410,1720311040145,-359.196396,0.0002,2]
[331383411,1720311040155,-151.0,0.0002,2]
[331383412,1720311040164,-151.0,0.0002,2]
[331383413,1720311040174,-162.46953,0.0002,2]
[331383414,1720311040184,-151.0,0.0002,2]
[331383415,1720311040193,-151.0,0.0002,2]
[331383416,1720311040203,-151.0,0.0002,2]
[331383417,1720311040213,-151.0,0.0002,2]
[331383418,1720311040223,-517.99714291,0.0002,2]
[331383419,1720311040233,-349.445685,0.0002,2]
[331383420,1720311040243,-151.0,0.0002,2]
[331383421,1720311040253,-349.445685,0.0002,2]
[331383422,1720311040263,-450.650008,0.0002,2]
[331383423,1720311040273,-450.650008,0.0002,2]
[331383424,1720311040283,-160.652876,0.0002,2]
[331383425,1720311040292,-185.52479092,0.0002,2]
[331383426,1720311040301,-408.482586,0.0002,2]
[331383427,1720311040311,-408.482586,0.0002,2]
[331383428,1720311040321,-151.0,0.0002,2]
[331383429,1720311040331,-151.0,0.0002,2]
[331383430,1720311040341,-151.0,0.0002,2]
[331383431,1720311040351,-151.0,0.0002,2]
[331383432,1720311040360,-151.0,0.0002,2]
[331383433,1720311040370,-218.510069,0.0002,2]
[331383434,1720311040380,-218.510069,0.0002,2]
[331383435,1720311040390,-151.0,0.0002,2]
[331383436,1720311040400,-151.0,0.0002,2]
[331383437,1720311040409,-151.0,0.0002,2]
[331383438,1720311040419,-151.0,0.0002,2]
[331383439,1720311040429,-151.0,0.0002,2]
[331383440,1720311040440,-150.39157666,0.00020009,2]
[331383441,1720311040450,-208.42154374,0.00020009,2]
[331383442,1720311040459,-823.0,0.00020034,2]
[331383443,1720311040468,-1143.91485947,0.00020258,2]
[331383444,1720311040478,-250.0,0.00020372,2]
[331383445,1720311040487,-241.81230002,0.00020387,2]
[331383446,1720311040496,-350.0,0.0002092,2]
[331383449,1720311040506,-750.0,0.00021096,2]
[331383452,1720311040515,-400.0,0.00021468,2]
[331383453,1720311040524,-1152.0,0.00021591,2]
[331383455,1720311040533,-11232.4213445,0.00022,2]
[331383458,1720311040543,-1152.0,0.00022037,2]
[331383460,1720311040552,-866.938852,0.00022878,2]
[331383463,1720311040561,-150.0,0.0002295,2]
[331383466,1720311040571,-1117.11621423,0.00023453,2]
[331383468,1720311040580,-160.47824648,0.00023498,2]
[331383470,1720311040591,-1408.0,0.00023629,2]
[331383472,1720311040600,-15389.53859157,0.000239,2]
[331383475,1720311040610,-1055.51963008,0.0002391,2]
[331383478,1720311040622,-1613.0,0.00024241,2]
[331383480,1720311040632,-380.0,0.00024658,2]
[331383481,1720311040641,-200.0,0.00024658,2]
[331383483,1720311040650,-150.39549383,0.00024725,2]
[331383484,1720311040660,-154.899266,0.00025,2]
[331383486,1720311040669,-190.53930209,0.00025,2]
[331383488,1720311040679,-532.09419389,0.00025,2]
[331383490,1720311040688,-3250.27950581,0.0002528,3]
[331383491,1720311040697,-5290.06267396,0.000255,2]
[331383493,1720311040707,-450.650008,0.00025501,7]
[331383495,1720311040717,-450.650008,0.00025501,7]
[331383496,1720311040726,-52108.7037465,0.00025501,2]
[331383498,1720311040736,-30000.0,0.00025501,2]
[331383500,1720311040745,-879.44990711,0.00025501,2]
[331383501,1720311040755,-151.0,0.00025513,7]
[331383503,1720311040765,-151.0,0.00025513,7]
[331383505,1720311040774,-151.0,0.00025513,7]
[331383506,1720311040785,-151.0,0.00025513,7]
[331383508,1720311040794,-150.0,0.00025548,2]
[331383509,1720311040804,-408.482586,0.00025583,7]
[331383511,1720311040813,-408.482586,0.00025583,7]
[331383512,1720311040822,-151.0,0.00025583,7]
[331383514,1720311040832,-151.0,0.00025583,7]
[331383515,1720311040841,-151.0,0.00025583,7]
[331383516,1720311040851,-218.510069,0.00025583,7]
[331383517,1720311040860,-218.510069,0.00025583,7]
[331383518,1720311040869,-151.0,0.00025583,7]
[331383519,1720311040879,-151.0,0.00025583,7]
[331383520,1720311040888,-151.0,0.000259,7]
[331383522,1720311040897,-151.0,0.000259,7]
[331383523,1720311040907,-215.242558,0.000259,7]
[331383525,1720311040916,-359.196396,0.000259,7]
[331383526,1720311040925,-359.196396,0.000259,7]
[331383528,1720311040935,-18084.633576,0.0002591,2]
[331383529,1720311040944,-349.445685,0.0002591,7]
[331383531,1720311040954,-349.445685,0.0002591,7]
[331383532,1720311040963,-403009.60106589,0.00026,2]
[331383533,1720311040972,-189.07190326,0.00026,2]
[331383534,1720311040982,-154.83742071,0.00026,2]
[331383535,1720311040991,-10590.56493232,0.00026,2]
[331383536,1720311041001,-151.0,0.00026,7]
[331383537,1720311041011,-4173.5699611,0.00026,2]
[331383538,1720311041021,-154.77557542,0.00026,2]
[331383539,1720311041030,-154.95222416,0.00026,2]
[331383540,1720311041041,-428.01995593,0.00026,2]
[331383541,1720311041050,-151.0,0.00026,7]
[331383542,1720311041059,-220.944962,0.00026,7]
[331383543,1720311041069,-154.706229,0.00026,7]
[331383544,1720311041079,-215.242558,0.00026,7]
[331383545,1720311041088,-359.196396,0.00026,7]
[331383546,1720311041098,-359.196396,0.00026,7]
[331383547,1720311041107,-151.0,0.00026,7]
[331383549,1720311041117,-151.0,0.00026,7]
[331383550,1720311041127,-151.0,0.00026,7]
[331383552,1720311041136,-151.0,0.00026,7]
[331383553,1720311041146,-151.0,0.00026,7]
[331383555,1720311041155,-373.0,0.00026,2]
[331383556,1720311041165,-151.0,0.00026,7]
[331383558,1720311041174,-349.445685,0.00026,7]
[331383559,1720311041183,-349.445685,0.00026,7]
[331383560,1720311041193,-450.650008,0.00026,7]
[331383561,1720311041202,-450.650008,0.00026,7]
[331383562,1720311041212,-173.343324,0.00026,2]
[331383563,1720311041221,-408.482586,0.00026,7]
[331383564,1720311041230,-408.482586,0.00026,7]
[331383565,1720311041240,-151.0,0.00026,7]
[331383566,1720311041250,-151.0,0.00026,7]
[331383567,1720311041259,-151.0,0.00026,7]
[331383568,1720311041269,-151.0,0.00026,7]
[331383569,1720311041279,-218.510069,0.00026,7]
[331383570,1720311041289,-218.510069,0.00026,7]
[331383571,1720311041299,-151.0,0.00026,7]
[331383572,1720311041309,-151.0,0.00026,7]
[331383573,1720311041324,-151.0,0.00026,7]
[331383574,1720311041335,-151.0,0.00026,7]
[331383575,1720311041344,-193.803263,0.00026388,2]
[331383576,1720311041354,-7458.94652043,0.0002649,2]
[331383577,1720311041363,-2057.29370151,0.000266,2]
[331383578,1720311041374,-253.0,0.00026665,2]
[331383579,1720311041383,-190.98130658,0.00026848,2]
[331383580,1720311041394,-750.0,0.00027195,2]
[331383581,1720311041404,-483.41284948,0.00027397,2]
[331383582,1720311041415,-500.0,0.00027397,2]
[331383583,1720311041426,-500.0,0.00027397,2]
[331383584,1720311041437,-500.0,0.00027397,2]
[331383585,1720311041450,-500.0,0.00027397,2]
[331383586,1720311041459,-524.68797638,0.00027397,2]
[331383587,1720311041469,-500.0,0.00027397,2]
[331383588,1720311041478,-500.0,0.00027397,2]
[331383589,1720311041488,-500.0,0.00027397,2]
[331383590,1720311041497,-500.0,0.00027397,2]
[331383591,1720311041507,-500.0,0.00027397,2]
[331383592,1720311041517,-400.0,0.00027397,60]
[331383593,1720311041527,-173.580737,0.00027397,120]
[331383594,1720311041540,-491.05706512,0.00027399,2]
[331383595,1720311041550,-154.76012181,0.00027399,2]
[331383596,1720311041559,-43628.90162962,0.000275,2]
[331383597,1720311041570,-1277.27285341,0.000279,2]
[331383598,1720311041580,-31453.32299021,0.0002799,2]
[331383599,1720311041591,-151.0,0.0002799,7]
[331383600,1720311041601,-151.0,0.0002799,7]
[331383601,1720311041611,-151.0,0.0002799,7]
[331383602,1720311041626,-151.0,0.0002799,7]
[331383603,1720311041635,-359.196396,0.00027999,7]
[331383604,1720311041644,-359.196396,0.00027999,7]
[331383605,1720311041653,-305.5614955,0.00027999,2]
[331383606,1720311041662,-268.36537859,0.00028,2]
[331383607,1720311041671,-199.18691618,0.00028,2]
[331383608,1720311041680,-796.87513105,0.000285,2]
[331383609,1720311041689,-189838.39808387,0.0002877,2]
[331383610,1720311041700,-151.0,0.0002877,7]
[331383611,1720311041708,-215.242558,0.0002877,7]
[331383612,1720311041717,-359.196396,0.0002877,7]
[331383613,1720311041726,-359.196396,0.0002877,7]
[331383614,1720311041735,-151.0,0.0002877,7]
[331383615,1720311041744,-151.0,0.0002877,7]
[331383616,1720311041753,-154.503798,0.0002877,7]
[331383617,1720311041762,-151.0,0.0002877,7]
[331383618,1720311041771,-151.0,0.0002877,7]
[331383619,1720311041780,-349.445685,0.0002877,7]
[331383620,1720311041791,-349.445685,0.0002877,7]
[331383621,1720311041800,-450.650008,0.0002877,7]
[331383622,1720311041809,-450.650008,0.0002877,7]
[331383623,1720311041818,-408.482586,0.0002877,7]
[331383624,1720311041827,-408.482586,0.0002877,7]
[331383625,1720311041836,-151.0,0.0002877,7]
[331383626,1720311041845,-151.0,0.0002877,7]
[331383627,1720311041855,-151.0,0.0002877,7]
[331383628,1720311041863,-151.0,0.0002877,7]
[331383629,1720311041874,-218.510069,0.0002877,7]
[331383630,1720311041883,-218.510069,0.0002877,7]
[331383631,1720311041892,-151.0,0.0002877,7]
[331383632,1720311041901,-151.0,0.0002877,7]
[331383633,1720311041911,-151.0,0.0002877,7]
[331383634,1720311041920,-151.0,0.0002877,7]
[331383635,1720311041930,-15389.53859157,0.000289,2]
[331383636,1720311041939,-848.76008577,0.00029,2]
[331383637,1720311041948,-523.88603616,0.000298,120]
[331383638,1720311041958,-495.50543718,0.0003,4]
[331383639,1720311041967,-309.61298378,0.0003,4]
[331383640,1720311041976,-384.35044149,0.0003,10]
[331383641,1720311041985,-7759.99805805,0.0003,10]
[331383642,1720311041994,-202.86745879,0.0003,30]
[331383643,1720311042003,-1000.26496273,0.0003,7]
[331383644,1720311042012,-950.0,0.0003,30]
[331383645,1720311042021,-642.9488218,0.0003,4]
[331383646,1720311042032,-155.23189542,0.0003,4]
[331383647,1720311042043,-210.0,0.0003,2]
[331383648,1720311042052,-210.0,0.0003,2]
[331383649,1720311042062,-8793.0526,0.00030321,30]
[331383650,1720311042071,-1025.57827945,0.00031515,4]
[331383651,1720311042080,-250.35069097,0.00031515,4]
[331383652,1720311042090,-303.07590911,0.00031515,4]
[331383653,1720311042099,-380.90110611,0.00032,120]
[331383654,1720311042109,-1000.0,0.00032876,10]
[331383655,1720311042118,-150.0,0.00032877,2]
[331383656,1720311042128,-154.76012181,0.0003295,2]
[331383657,1720311042137,-210.0,0.00033,2]
[331383658,1720311042147,-210.0,0.00033,2]
[331383659,1720311042156,-210.0,0.00033,2]
[331383660,1720311042165,-750.0,0.00033295,2]
[331383661,1720311042175,-193.803263,0.00033598,2]
[331383662,1720311042184,-151.0,0.00033838,7]
[331383663,1720311042193,-215.242558,0.00033838,7]
[331383664,1720311042203,-215.242558,0.00033857,7]
[331383665,1720311042212,-215.242558,0.00033857,7]
[331383666,1720311042221,-359.196396,0.00033857,7]
[331383667,1720311042230,-359.196396,0.00033857,7]
[331383668,1720311042239,-359.196396,0.00033857,7]
[331383669,1720311042248,-359.196396,0.00033857,7]
[331383670,1720311042257,-151.0,0.00033857,7]
[331383671,1720311042266,-151.0,0.00033857,7]
[331383672,1720311042275,-63304.70450084,0.00033961,7]
[331383673,1720311042284,-237413.04490345,0.00033961,120]
[331383674,1720311042293,-88567.35296531,0.00033961,2]
[331383675,1720311042302,-786.95813869,0.00033961,2]
[331383676,1720311042312,-4117.28022616,0.00033961,2]
[331383677,1720311042321,-1038.72802468,0.00033961,2]
[331383678,1720311042330,-10014.60681102,0.00033961,2]
[331383679,1720311042339,-18853.13221969,0.00033961,2]
[331383680,1720311042348,-3618.08155849,0.00033961,2]
[331383681,1720311042357,-3033.37945026,0.00033961,2]
[331383683,1720311042366,-1010.57291213,0.00033961,2]
[331383684,1720311042376,-152457.60716225,0.00033961,2]
[331383685,1720311042385,-983.49111418,0.00033961,2]
[331383686,1720311042395,-151.0,0.00033961,7]
[331383687,1720311042407,-151.0,0.00033961,7]
[331383688,1720311042416,-291.944228,0.00033961,7]
[331383689,1720311042426,-151.0,0.00033961,7]
[331383690,1720311042436,-151.0,0.00033961,7]
[331383691,1720311042445,-349.445685,0.00033961,7]
[331383692,1720311042454,-349.445685,0.00033961,7]
[331383693,1720311042463,-349.445685,0.00033961,7]
[331383694,1720311042473,-349.445685,0.00033961,7]
[331383695,1720311042482,-349.445685,0.00033961,7]
[331383696,1720311042491,-349.445685,0.00033961,7]
[331383697,1720311042501,-450.650008,0.00033961,7]
[331383698,1720311042510,-450.650008,0.00033961,7]
[331383699,1720311042519,-450.650008,0.00033961,7]
[331383700,1720311042649,-450.650008,0.00033961,7]
[331383701,1720311042659,-450.650008,0.00033961,7]
[331383702,1720311042669,-450.650008,0.00033961,7]
[331383703,1720311042678,-408.482586,0.00033961,7]
[331383704,1720311042687,-408.482586,0.00033961,7]
[331383705,1720311042698,-408.482586,0.00033961,7]
[331383706,1720311042707,-408.482586,0.00033961,7]
[331383707,1720311042716,-151.0,0.00033961,7]
[331383708,1720311042726,-151.0,0.00033961,7]
[331383709,1720311042735,-151.0,0.00033961,7]
[331383710,1720311042744,-151.0,0.00033961,7]
[331383711,1720311042753,-151.0,0.00033961,7]
[331383712,1720311042762,-151.0,0.00033961,7]
[331383713,1720311042772,-151.0,0.00033961,7]
[331383714,1720311042781,-151.0,0.00033961,7]
[331383715,1720311042792,-218.510069,0.00033961,7]
[331383716,1720311042801,-218.510069,0.00033961,7]
[331383717,1720311042811,-218.510069,0.00033961,7]
[331383718,1720311042820,-218.510069,0.00033961,7]
[331383719,1720311042829,-151.0,0.00033961,7]
[331383720,1720311042838,-151.0,0.00033961,7]
[331383721,1720311042847,-151.0,0.00033961,7]
[331383722,1720311042856,-151.0,0.00033961,7]
[331383723,1720311042865,-151.0,0.00033961,7]
[331383724,1720311042875,-151.0,0.00033961,7]
[331383725,1720311042884,-151.0,0.00033961,7]
[331383726,1720311042893,-151.0,0.00033961,7]
[331383727,1720311042902,-525.0158049,0.00034,5]
[331383728,1720311042911,-1000.0,0.00034246,10]
[331383729,1720311042920,-155.16757676,0.00034421,4]
[331383730,1720311042929,-1000.0,0.000348,3]
[331383731,1720311042938,-399.49347771,0.00035,2]
[331383735,1720311042948,-474.22653977,0.00035,4]
[331383739,1720311042957,-1000.0,0.00035616,10]
[331383744,1720311042967,-153.0,0.00035738,2]
[331383747,1720311042976,-153.0,0.00035738,2]
[331383751,1720311042986,-435.2302179,0.00035738,2]
[331383755,1720311042995,-306.0,0.00035738,2]
[331383758,1720311043005,-153.0,0.00035738,2]
[331383761,1720311043014,-153.0,0.00035738,2]
[331383764,1720311043024,-153.0,0.00035875,2]
[331383767,1720311043033,-306.0,0.00035875,2]
[331383769,1720311043043,-153.0,0.00035875,2]
[331383771,1720311043052,-153.0,0.00035875,2]
[331383773,1720311043061,-153.0,0.00035875,2]
[331383775,1720311043070,-153.0,0.00035875,2]
[331383777,1720311043079,-153.0,0.00035875,2]
[331383779,1720311043088,-153.0,0.00035875,2]
[331383780,1720311043097,-153.0,0.00035875,2]
[331383782,1720311043106,-153.0,0.00035875,2]
[331383784,1720311043118,-153.0,0.00035875,2]
[331383786,1720311043127,-153.0,0.00035875,2]
[331383787,1720311043136,-153.0,0.00035875,2]
[331383788,1720311043146,-153.0,0.00035875,2]
[331383789,1720311043155,-153.0,0.00035875,2]
[331383790,1720311043165,-153.0,0.00035875,2]
[331383791,1720311043175,-200.0,0.00035889,120]
[331383792,1720311043184,-395.4705443,0.00036,30]
[331383793,1720311043194,-210.0,0.00036,2]
[331383794,1720311043203,-210.0,0.00036,2]
[331383795,1720311043214,-210.0,0.00036,2]
[331383796,1720311043223,-157.0,0.00036,2]
[331383797,1720311043233,-153.0,0.0003656,2]
[331383798,1720311043243,-153.0,0.0003656,2]
[331383799,1720311043252,-153.0,0.0003656,2]
[331383800,1720311043262,-206.1814845,0.0003656,2]
[331383801,1720311043271,-306.0,0.0003656,2]
[331383802,1720311043281,-153.0,0.0003656,2]
[331383803,1720311043292,-206.1814845,0.0003656,2]
[331383804,1720311043301,-153.0,0.0003656,2]
[331383805,1720311043311,-153.0,0.0003656,2]
[331383806,1720311043320,-153.0,0.0003656,2]
[331383807,1720311043330,-153.0,0.0003656,2]